Workbook

Sheet паспорт
A1: ПАТ "УКРТРАНСГАЗ" | G1: ПАСПОРТ ФІЗИКО-ХІМІЧНИХ ПОКАЗНИКІВ ПРИРОДНОГО ГАЗУ № 660
A2: Філія "УМГ "ХАРКІВТРАНСГАЗ" | G2: переданого Харківським ЛВУМГ та прийнятого ПАТ "Харківгаз", ПАТ "Центренерго", Шебелинське ВПГКН
A3: Шебелинський п/м Шебелинське ЛВУМГ | G3: Маршрут № 660
A4: Вимірювальна хіміко-аналітична лабораторія | H4: по газопроводу "ПЕРЕМИЧКА ОСТРОГОЖСЬК-ШЕБЕЛИНКА-ШЕБЕЛИНКА-БЄЛГОРОД-КУРСЬК-БРЯНСЬК"
A5: Свідоцтво № 100-355/2015 чинно до 20.12.2018 р. | V5: за період з | X5: 01.02.2017 р. | Z5: по | AA5: 28.02.2017 р.
A7: Число місяця | B7: Компонентний склад, мол. % | N7: Фізико-хімічні показники газу обчислені на основі компонентного складу, 101,325 кПа | X7: Температура точки роси за вологою (Р = 3.92 МПа), °С | Y7: Температура точки роси за вуглеводнями, °С | Z7: Вміст сірководню, г/м3 | AA7: Вміст меркаптанової сірки, г/м3 | AB7: Вміст механічних домішок, г/м3
N8: Густина абсолютна, кг/м3,при 20 °С, | O8: Температура вимірювання/згоряння при 20/25°С
B9: метан, С1 | C9: етан, С2 | D9: пропан, С3 | E9: ізо-бутан, і-С4 | F9: н-бутан, н-С4 | G9: нео-пентан, нео-С5 | H9: ізо-пентан, і-С5 | I9: н-пентан, н-С5 | J9: гексани та вищі, С6+ | K9: кисень, О2 | L9: азот, N2 | M9: діоксид вуглецю, CО2 | O9: Теплота згоряння нижча | R9: Теплота згоряння вища | U9: Число Воббе вище
O10: ккал/м³ | P10: МДж/м³ | Q10: кВт⋅год/м³ | R10: ккал/м³ | S10: МДж/м³ | T10: кВт⋅год/м³ | U10: ккал/м³ | V10: МДж/м³ | W10: кВт⋅год/м³
A11: 1 | B11: 94.8379 | C11: 2.8511 | D11: 0.7193 | E11: 0.081 | F11: 0.1666 | G11: 0.0054 | H11: 0.0354 | I11: 0.027 | J11: 0.0999 | K11: 0.0066 | L11: 0.986 | M11: 0.1839 | N11: 0.7094 | O11: =P11*238.8459 -> 8251.289884 | P11: 34.5465 | Q11: =P11/3.6 -> 9.59625 | R11: =S11*238.8459 -> 9142.304514 | S11: 38.277 | T11: =S11/3.6 -> 10.6325 | U11: =V11*238.8459 -> 11912.94084 | V11: 49.8771 | W11: =V11/3.6 -> 13.85475 | X11: -16.8 | Y11: -4.8 | AC11: =SUM(B11:M11)+$K$39+$N$39 -> 100.0001
A12: 2 | O12: =P12*238.8459 -> 8251.289884 | P12: 34.5465 | Q12: 9.59625 | R12: =S12*238.8459 -> 9142.304514 | S12: 38.277 | T12: 10.6325 | AC12: 0
A13: 3 | B13: 94.5568 | C13: 2.9981 | D13: 0.7325 | E13: 0.0863 | F13: 0.1672 | G13: 0.0067 | H13: 0.0398 | I13: 0.0301 | J13: 0.1411 | K13: 0.0061 | L13: 1.0455 | M13: 0.19 | N13: 0.7123 | O13: 8272.881554 | P13: 34.6369 | Q13: 9.621361111 | R13: 9165.233721 | S13: 38.373 | T13: 10.65916667 | U13: 11918.48206 | V13: 49.9003 | W13: =V13/3.6 -> 13.86119444 | X13: -13.1 | Y13: -3.2 | AB13: відс | AC13: 100.0002 | AD13: =IF(AC13=100,"ОК"," ") -> 
A14: 4 | O14: 8272.881554 | P14: 34.6369 | Q14: 9.621361111 | R14: 9165.233721 | S14: 38.373 | T14: 10.65916667 | AC14: 0 | AD14: =IF(AC14=100,"ОК"," ") -> 
A15: 5 | O15: 8272.881554 | P15: 34.6369 | Q15: 9.621361111 | R15: 9165.233721 | S15: 38.373 | T15: 10.65916667 | AC15: 0
A16: 6 | B16: 93.9096 | C16: 3.4508 | D16: 0.8153 | E16: 0.0986 | F16: 0.1794 | G16: 0.0083 | H16: 0.0468 | I16: 0.0354 | J16: 0.0855 | K16: 0.0071 | L16: 1.1389 | M16: 0.2245 | N16: 0.7159 | O16: 8292.01311 | P16: 34.717 | Q16: 9.643611111 | R16: 9185.320661 | S16: 38.4571 | T16: 10.68252778 | U16: 11914.27838 | V16: 49.8827 | W16: 13.85630556 | X16: -10.5 | Y16: -1.2 | AC16: 100.0002
A17: 7 | O17: 8292.01311 | P17: 34.717 | Q17: 9.643611111 | R17: 9185.320661 | S17: 38.4571 | T17: 10.68252778 | AC17: 0
A18: 8 | B18: 93.6634 | C18: 3.5531 | D18: 0.8478 | E18: 0.0826 | F18: 0.1644 | G18: 0.005 | H18: 0.0348 | I18: 0.0262 | J18: 0.1078 | K18: 0.0069 | L18: 1.3283 | M18: 0.1799 | N18: 0.7168 | O18: 8285.946424 | P18: 34.6916 | Q18: 9.636555556 | R18: 9178.346361 | S18: 38.4279 | T18: 10.67441667 | U18: 11897.48751 | V18: 49.8124 | W18: 13.83677778 | X18: -15.6 | Y18: -5.8 | Z18: 0.0001 | AA18: 0.001 | AC18: 100.0002
A19: 9 | O19: 8285.946424 | P19: 34.6916 | Q19: 9.636555556 | R19: 9178.346361 | S19: 38.4279 | T19: 10.67441667 | AC19: 0
A20: 10 | B20: 93.6525 | C20: 3.5493 | D20: 0.8467 | E20: 0.0833 | F20: 0.1655 | G20: 0.0053 | H20: 0.0336 | I20: 0.0258 | J20: 0.1195 | K20: 0.0066 | L20: 1.3309 | M20: 0.1808 | N20: 0.7172 | O20: 8289.003652 | P20: 34.7044 | Q20: =P20/3.6 -> 9.640111111 | R20: 9181.642434 | S20: 38.4417 | T20: =S20/3.6 -> 10.67825 | U20: 11898.92058 | V20: 49.8184 | W20: 13.83844444 | X20: -13.6 | Y20: -2.2 | AC20: 99.9998
A21: 11 | O21: 8289.003652 | P21: 34.7044 | Q21: 9.640111111 | R21: 9181.642434 | S21: 38.4417 | T21: 10.67825 | AC21: 0
A22: 12 | O22: 8289.003652 | P22: 34.7044 | Q22: 9.640111111 | R22: 9181.642434 | S22: 38.4417 | T22: 10.67825 | AC22: 0
A23: 13 | B23: 93.6654 | C23: 3.5485 | D23: 0.8111 | E23: 0.0978 | F23: 0.1727 | G23: 0.0087 | H23: 0.0477 | I23: 0.0354 | J23: 0.1547 | K23: 0.0061 | L23: 1.2202 | M23: 0.2317 | N23: 0.7188 | O23: 8310.929706 | P23: 34.7962 | Q23: 9.665611111 | R23: 9205.312063 | S23: 38.5408 | T23: 10.70577778 | U23: 11915.75922 | V23: 49.8889 | W23: 13.85802778 | X23: -12.1 | Y23: -2.4 | AC23: 100 | AD23: ОК
A24: 14 | O24: 8310.929706 | P24: 34.7962 | Q24: 9.665611111 | R24: 9205.312063 | S24: 38.5408 | T24: 10.70577778 | AC24: 0
A25: 15 | B25: 93.6937 | C25: 3.5687 | D25: 0.816 | E25: 0.096 | F25: 0.1701 | G25: 0.0073 | H25: 0.0466 | I25: 0.035 | J25: 0.1106 | K25: 0.006 | L25: 1.2159 | M25: 0.234 | N25: 0.7176 | O25: 8297.817066 | P25: 34.7413 | Q25: 9.650361111 | R25: 9191.267924 | S25: 38.482 | T25: 10.68944444 | U25: 11908.02061 | V25: 49.8565 | W25: 13.84902778 | X25: -10.6 | Y25: -1.5 | AC25: 99.9999
A26: 16 | O26: 8297.817066 | P26: 34.7413 | Q26: =P26/3.6 -> 9.650361111 | R26: 9191.267924 | S26: 38.482 | T26: =S26/3.6 -> 10.68944444 | AC26: 0
A27: 17 | B27: 93.9571 | C27: 3.413 | D27: 0.8029 | E27: 0.0883 | F27: 0.1678 | G27: 0.0058 | H27: 0.0404 | I27: 0.0307 | J27: 0.0952 | K27: 0.0065 | L27: 1.1876 | M27: 0.2048 | N27: 0.7151 | O27: 8281.408352 | P27: 34.6726 | Q27: 9.631277778 | R27: 9173.856058 | S27: 38.4091 | T27: 10.66919444 | U27: 11905.89488 | V27: 49.8476 | W27: 13.84655556 | X27: -14.6 | Y27: -3.7 | AC27: 100.0001
A28: 18 | O28: 8281.408352 | P28: 34.6726 | Q28: 9.631277778 | R28: 9173.856058 | S28: 38.4091 | T28: 10.66919444 | AC28: 0
A29: 19 | O29: 8281.408352 | P29: 34.6726 | Q29: 9.631277778 | R29: 9173.856058 | S29: 38.4091 | T29: 10.66919444 | AC29: 0
A30: 20 | B30: 92.9511 | C30: 4.0734 | D30: 0.8878 | E30: 0.1109 | F30: 0.182 | G30: 0.0093 | H30: 0.0564 | I30: 0.0424 | J30: 0.1124 | K30: 0.0063 | L30: 1.3059 | M30: 0.2622 | N30: 0.7231 | O30: 8339.113522 | P30: 34.9142 | Q30: 9.698388889 | R30: 9235.120031 | S30: 38.6656 | T30: 10.74044444 | U30: 11918.74479 | V30: 49.9014 | W30: 13.8615 | X30: -11.1 | Y30: 5.4 | AB30: відс | AC30: 100.0001 | AD30: =IF(AC30=100,"ОК"," ") -> 
A31: 21 | O31: 8339.113522 | P31: 34.9142 | Q31: 9.698388889 | R31: 9235.120031 | S31: 38.6656 | T31: 10.74044444 | AC31: 0
A32: 22 | B32: 93.0669 | C32: 3.9724 | D32: 0.8643 | E32: 0.1083 | F32: 0.1773 | G32: 0.0092 | H32: 0.0571 | I32: 0.0423 | J32: 0.1383 | K32: 0.0058 | L32: 1.3116 | M32: 0.2465 | N32: 0.7227 | O32: 8337.48937 | P32: 34.9074 | Q32: 9.6965 | R32: 9233.424225 | S32: 38.6585 | T32: 10.73847222 | U32: 11919.70018 | V32: 49.9054 | W32: 13.86261111 | X32: -11.5 | Y32: -9.2 | AC32: 100 | AD32: ОК
A33: 23 | O33: 8337.48937 | P33: 34.9074 | Q33: =P33/3.6 -> 9.6965 | R33: 9233.424225 | S33: 38.6585 | T33: =S33/3.6 -> 10.73847222 | AC33: 0 | AD33: =IF(AC33=100,"ОК"," ") -> 
A34: 24 | B34: 93.0602 | C34: 3.9691 | D34: 0.8844 | E34: 0.1106 | F34: 0.1832 | G34: 0.009 | H34: 0.0571 | I34: 0.0429 | J34: 0.1366 | K34: 0.0054 | L34: 1.2914 | M34: 0.2502 | N34: 0.723 | O34: 8342.218518 | P34: 34.9272 | Q34: 9.702 | R34: 9238.535527 | S34: 38.6799 | T34: 10.74441667 | U34: 11924.1666 | V34: 49.9241 | W34: 13.86780556 | X34: -12.8 | Y34: -6.7 | AC34: 100.0001
A35: 25 | O35: 8342.218518 | P35: 34.9272 | Q35: 9.702 | R35: 9238.535527 | S35: 38.6799 | T35: 10.74441667 | AC35: 0
A36: 26 | O36: 8342.218518 | P36: 34.9272 | Q36: 9.702 | R36: 9238.535527 | S36: 38.6799 | T36: =S36/3.6 -> 10.74441667 | AC36: 0
A37: 27 | B37: 92.8835 | C37: 4.0689 | D37: 0.8984 | E37: 0.1134 | F37: 0.1864 | G37: 0.0092 | H37: 0.0583 | I37: 0.0438 | J37: 0.1428 | K37: 0.0059 | L37: 1.3165 | M37: 0.273 | N37: 0.7245 | O37: 8349.885472 | P37: 34.9593 | Q37: 9.710916667 | R37: 9246.608519 | S37: 38.7137 | T37: 10.75380556 | U37: =V37*238.8459 -> 11922.32748 | V37: 49.9164 | W37: =V37/3.6 -> 13.86566667 | X37: -9.9 | Y37: 8.2 | Z37: 0.0001 | AA37: 0.0002 | AC37: 100.0001
A38: 28 | O38: 8349.885472 | P38: 34.9593 | Q38: 9.710916667 | R38: 9246.608519 | S38: 38.7137 | T38: 10.75380556 | AC38: 0
A39: Рівень одоризації відповідає чинним нормативним документам | O39: 8300 | P39: 34.75 | Q39: 9.65 | R39: 9193 | S39: 38.49 | T39: 10.69
H40: Середньозважене значення теплоти згоряння:
B43: Головний інженер Харківського ЛВУМГ Моторя О.А.
C44: Підрозділу підприємства, якому підпорядкована лабораторія | O44: прізвище | R44: підпис | V44: дата
B45: Завідувач ВХАЛ Шебелинського п/м Євтушенко С.О.
C46: Лабораторія, де здійснювалось вимірювання газу | O46: прізвище | R46: підпис | V46: дата
B47: Начальник служби ГВ та М Щербак С.О.
C48: Підрозділу, відповідального за облік газу за маршрутом | O48: прізвище | R48: підпис | V48: дата

Sheet додаток
B2: Додаток до Паспорту фізико-хімічних показників природного газу №660
B4: Область | C4: ГРС, прямий споживач | D4: Cередньозважене значення вищої теплоти згоряння
D5: МДж/м³ | E5: ккал/м³ | F5: кВт*год./м³
B6: Харківська область | C6: ГРС Комсомольське | D6: 38.48849299 | E6: 9192.818747 | F6: 10.69124805
C7: ГРС Андріївка | D7: 38.48881321 | E7: 9192.89523 | F7: 10.691337
C8: ГРС Гракове | D8: 38.48875743 | E8: 9192.881907 | F8: 10.69132151
C9: ГРС 2 м.Чугуїв | D9: 38.48938132 | E9: 9193.030922 | F9: 10.69149481
C10: ГРС Липці | D10: 38.4875059 | E10: 9192.92594 | F10: 10.69097386
C11: ГРС Вільхівка | D11: 38.48894178 | E11: 9192.92594 | F11: 10.69137272
C12: ГРС Кутузівка | D12: 38.49092698 | E12: 9193.400097 | F12: 10.69192416
C13: ГРС В.Бабка | D13: 38.4873254 | E13: 9192.539873 | F13: 10.69092372
C14: ГРС Стрілеча | D14: 38.48962679 | E14: 9193.089552 | F14: 10.691563
C15: ГРС Р.Тишки | D15: 38.48830542 | E15: 9192.773947 | F15: 10.69119595
C16: ГРС Печеніги | D16: 38.48843846 | E16: 9192.805723 | F16: 10.6912329
C17: ГРС Проходи | D17: 38.48771252 | E17: 9192.632335 | F17: 10.69103125
C18: Зміївська ТЕС | D18: 38.47099429 | E18: 9188.639254 | F18: 10.6863873
C19: Шебелинське ВПГКН | D19: 38.49900108 | E19: 9195.328561 | F19: 10.69416697
B20: Середньозважене значення вищої теплоти згоряння по маршруту № 660 | D20: 38.49054996 | E20: 9193.310048 | F20: 10.69181943
B24: Головний інженер Харківського ЛВУМГ Моторя О.А.
B25: Підрозділу підприємства, якому підпорядкована лабораторія | E25: прізвище | F25: підпис | G25: дата
B26: Завідувач ВХАЛ Шебелинського п/м Євтушенко С.О.
B27: Лабораторія, де здійснювалось вимірювання газу | E27: прізвище | F27: підпис | G27: дата
B28: Начальник служби ГВ та М Щербак С.О.
B29: Підрозділу, відповідального за облік газу за маршрутом | E29: прізвище | F29: підпис | G29: дата

Sheet variablesList (hidden)
A1: 3 | B1: x:\gaysin | C1: 10, 11, 24, 25, 127, 128, 132, 180, 207, 215 | D1: x:\
B2: x:\Illinci
B3: x:\Talne
